bitfinex-derivatives/quotes_BNBF0:USTF0_20251002
["timestamp","ask_amount","ask_price","bid_price","bid_amount"]
[1759368967806,0.54543012,1027.3,1026.3,0.16943335]
[1759368968119,0.87340148,1028.0,1026.3,0.16943335]
[1759368968411,0.54525075,1027.9,1026.3,0.16943335]
[1759368968611,0.54525075,1027.8,1026.3,0.16943335]
[1759368968911,0.54525075,1027.7,1026.3,0.16943335]
[1759368969212,0.54525075,1027.6,1026.3,0.16943335]
[1759368969407,0.54525075,1027.5,1026.3,0.16943335]
[1759368969610,0.87340148,1028.0,1026.3,0.16943335]
[1759368969611,0.54525075,1027.4,1026.3,0.16943335]
[1759368969810,0.54525075,1027.3,1026.3,0.16943335]
[1759368970106,0.87340148,1028.0,1026.3,0.16943335]
[1759368970308,0.5451107,1027.9,1026.3,0.16943335]
[1759368970507,0.5451107,1027.8,1026.3,0.16943335]
[1759368970711,0.87340148,1028.0,1026.3,0.16943335]
[1759368970712,0.5451107,1027.7,1026.3,0.16943335]
[1759368971011,0.5451107,1027.6,1026.3,0.16943335]
[1759368971208,0.5451107,1027.5,1026.3,0.16943335]
[1759368971408,0.5451107,1027.4,1026.3,0.16943335]
[1759368971606,0.87340148,1028.0,1026.3,0.16943335]
[1759368971809,0.54501384,1027.9,1026.3,0.16943335]
[1759368972013,0.54501384,1027.8,1026.3,0.16943335]
[1759368972312,0.54501384,1027.7,1026.3,0.16943335]
[1759368972510,0.54501384,1027.6,1026.3,0.16943335]
[1759368972813,0.54501384,1027.5,1026.3,0.16943335]
[1759368973013,0.54501384,1027.4,1026.3,0.16943335]
[1759368973211,0.87340148,1028.0,1026.3,0.16943335]
[1759368973410,0.54498215,1027.9,1026.3,0.16943335]
[1759368973714,0.54498215,1027.8,1026.3,0.16943335]
[1759368973917,0.54498215,1027.7,1026.3,0.16943335]
[1759368974113,0.54498215,1027.6,1026.3,0.16943335]
[1759368974318,0.54498215,1027.5,1026.3,0.16943335]
[1759368974613,0.54498215,1027.4,1026.3,0.16943335]
[1759368974812,0.54498215,1027.3,1026.3,0.16943335]
[1759368975115,0.87340148,1027.9,1026.3,0.16943335]
[1759368975315,0.54493656,1027.8,1026.3,0.16943335]
[1759368975514,0.87340148,1027.9,1026.3,0.16943335]
[1759368975515,0.54493656,1027.7,1026.3,0.16943335]
[1759368975712,0.54493656,1027.6,1026.3,0.16943335]
[1759368975916,0.54493656,1027.5,1026.3,0.16943335]
[1759368976113,0.54493656,1027.4,1026.3,0.16943335]
[1759368976316,0.54493656,1027.3,1026.3,0.16943335]
[1759368976514,0.87340148,1027.9,1026.3,0.16943335]
[1759368976714,0.54490567,1027.8,1026.3,0.16943335]
[1759368976918,0.54490567,1027.7,1026.3,0.16943335]
[1759368977117,0.54490567,1027.6,1026.3,0.16943335]
[1759368977318,0.54490567,1027.5,1026.3,0.16943335]
[1759368977514,0.87340148,1028.0,1026.3,0.16943335]
[1759368977515,0.54490567,1027.4,1026.3,0.16943335]
[1759368977714,0.54490567,1027.3,1026.3,0.16943335]
[1759368977912,0.87340148,1028.0,1026.3,0.16943335]
[1759368978118,0.54500452,1027.9,1026.3,0.16943335]
[1759368978319,0.54500452,1027.8,1026.3,0.16943335]
[1759368978521,0.54500452,1027.7,1026.3,0.16943335]
[1759368978722,0.54500452,1027.6,1026.3,0.16943335]
[1759368978921,0.54500452,1027.5,1026.3,0.16943335]
[1759368979121,0.54500452,1027.4,1026.3,0.16943335]
[1759368979319,0.54500452,1027.3,1026.3,0.16943335]
[1759368979518,0.87340148,1028.0,1026.3,0.16943335]
[1759368979720,0.54500398,1027.9,1026.3,0.16943335]
[1759368980022,0.54500398,1027.8,1026.3,0.16943335]
[1759368980322,0.54500398,1027.7,1026.3,0.16943335]
[1759368980524,0.54500398,1027.6,1026.3,0.16943335]
[1759368980718,0.54500398,1027.5,1026.3,0.16943335]
[1759368980922,0.54500398,1027.4,1026.3,0.16943335]
[1759368981118,0.54500398,1027.3,1026.3,0.16943335]
[1759368981323,0.87340148,1028.1,1026.3,0.16943335]
[1759368981519,0.54503335,1028.0,1026.3,0.16943335]
[1759368981823,0.54503335,1027.9,1026.3,0.16943335]
[1759368982022,0.54503335,1027.8,1026.3,0.16943335]
[1759368982220,0.54503335,1027.7,1026.3,0.16943335]
[1759368982419,0.54503335,1027.6,1026.3,0.16943335]
[1759368982623,0.54503335,1027.5,1026.3,0.16943335]
[1759368982821,0.54503335,1027.4,1026.3,0.16943335]
[1759368983025,0.54503335,1027.3,1026.3,0.16943335]
[1759368983325,0.87340148,1028.1,1026.3,0.16943335]
[1759368983521,0.54509395,1028.0,1026.3,0.16943335]
[1759368983726,0.54509395,1027.9,1026.3,0.16943335]
[1759368983922,0.54509395,1027.8,1026.3,0.16943335]
[1759368984221,0.54509395,1027.7,1026.3,0.16943335]
[1759368984422,0.54509395,1027.6,1026.3,0.16943335]
[1759368984621,0.54509395,1027.5,1026.3,0.16943335]
[1759368984827,0.87340148,1028.1,1026.3,0.16943335]
[1759368985028,0.54510111,1028.0,1026.3,0.16943335]
[1759368985227,0.54510111,1027.9,1026.3,0.16943335]
[1759368985427,0.54510111,1027.8,1026.3,0.16943335]
[1759368985626,0.87340148,1028.0,1026.3,0.16943335]
[1759368985627,0.54510111,1027.7,1026.3,0.16943335]
[1759368985824,0.54510111,1027.6,1026.3,0.16943335]
[1759368986024,0.87340148,1028.0,1026.3,0.16943335]
[1759368986228,0.54512631,1027.9,1026.3,0.16943335]
[1759368986430,0.54512631,1027.8,1026.3,0.16943335]
[1759368986628,0.54512631,1027.7,1026.3,0.16943335]
[1759368986828,0.54512631,1027.6,1026.3,0.16943335]
[1759368987026,0.87340148,1028.0,1026.3,0.16943335]
[1759368987227,0.54522115,1027.9,1026.3,0.16943335]
[1759368987426,0.54522115,1027.8,1026.3,0.16943335]
[1759368987630,0.54522115,1027.7,1026.3,0.16943335]
[1759368987926,0.54522115,1027.6,1026.3,0.16943335]
[1759368988131,1.0427326,1028.4,1026.3,0.16943335]
[1759368988132,0.54522115,1027.5,1026.3,0.16943335]
[1759368988429,0.54522115,1027.4,1026.3,0.16943335]
[1759368988730,1.0427326,1028.4,1026.3,0.16943335]
[1759368988924,0.54546295,1028.3,1026.3,0.16943335]
[1759368989128,0.54546295,1028.2,1026.3,0.16943335]
[1759368989327,0.54546295,1028.1,1026.3,0.16943335]
[1759368989528,0.54546295,1028.0,1026.3,0.16943335]
[1759368989730,0.54546295,1027.9,1026.3,0.16943335]
[1759368989927,0.54546295,1027.8,1026.3,0.16943335]
[1759368990131,0.54546295,1027.7,1026.3,0.16943335]
[1759368990430,0.54546295,1027.6,1026.3,0.16943335]
[1759368990628,0.54546295,1027.5,1026.3,0.16943335]
[1759368990832,0.54546295,1027.4,1026.3,0.16943335]
[1759368991131,0.87340148,1028.3,1026.3,0.16943335]
[1759368991332,1.41908298,1028.2,1026.3,0.16943335]
[1759368991530,0.5456815,1028.1,1026.3,0.16943335]
[1759368991829,0.5456815,1028.0,1026.3,0.16943335]
[1759368992028,0.5456815,1027.9,1026.3,0.16943335]
[1759368992230,0.5456815,1027.8,1026.3,0.16943335]
[1759368992430,0.5456815,1027.7,1026.3,0.16943335]
[1759368992634,0.5456815,1027.6,1026.3,0.16943335]
[1759368992834,0.5456815,1027.5,1026.3,0.16943335]
[1759368993034,0.5456815,1027.4,1026.3,0.16943335]
[1759368993335,0.87340148,1028.2,1026.3,0.16943335]
[1759368993532,0.54604516,1028.1,1026.3,0.16943335]
[1759368993737,0.54604516,1028.0,1026.3,0.16943335]
[1759368993936,0.54604516,1027.9,1026.3,0.16943335]
[1759368994236,0.54604516,1027.8,1026.3,0.16943335]
[1759368994535,0.54604516,1027.7,1026.3,0.16943335]
[1759368994730,0.54604516,1027.6,1026.3,0.16943335]
[1759368994932,0.54604516,1027.5,1026.3,0.16943335]
[1759368995132,0.87340148,1028.2,1026.3,0.16943335]
[1759368995133,0.54604516,1027.4,1026.3,0.16943335]
[1759368995331,0.87340148,1028.1,1026.3,0.16943335]
[1759368995637,0.54633451,1028.0,1026.3,0.16943335]
[1759368995937,0.54633451,1027.9,1026.3,0.16943335]
[1759368996138,0.54633451,1027.8,1026.3,0.16943335]
[1759368996332,0.54633451,1027.7,1026.3,0.16943335]
[1759368996532,0.54633451,1027.6,1026.3,0.16943335]
[1759368996836,0.54633451,1027.5,1026.3,0.16943335]
[1759368997033,0.54633451,1027.4,1026.3,0.16943335]
[1759368997334,0.87340148,1028.1,1026.3,0.16943335]
[1759368997549,0.5466506,1028.0,1026.3,0.16943335]
[1759368997836,0.5466506,1027.9,1026.3,0.16943335]
[1759368998033,0.5466506,1027.8,1026.3,0.16943335]
[1759368998233,0.5466506,1027.7,1026.3,0.16943335]
[1759368998437,0.5466506,1027.6,1026.3,0.16943335]
[1759368998733,0.5466506,1027.5,1026.3,0.16943335]
[1759368998932,0.5466506,1027.4,1026.3,0.16943335]
[1759368999137,0.87340148,1028.0,1026.3,0.16943335]
[1759368999337,0.54696329,1027.9,1026.3,0.16943335]
[1759368999538,0.54696329,1027.8,1026.0,1.30174951]
[1759368999733,0.54696329,1027.7,1026.0,1.30174951]
[1759368999937,0.54696329,1027.6,1026.0,1.30174951]
[1759369000136,0.54696329,1027.5,1026.0,1.30174951]
[1759369000337,0.87340148,1028.0,1026.0,1.30174951]
[1759369000338,0.54696329,1027.4,1026.0,1.30174951]
[1759369000534,0.54696329,1027.3,1026.0,1.30174951]
[1759369000838,0.87340148,1028.0,1026.0,1.30174951]
[1759369001038,0.54715712,1027.9,1026.0,1.30174951]
[1759369001336,0.54715712,1027.8,1026.0,1.30174951]
[1759369001537,0.54715712,1027.7,1026.0,1.30174951]
[1759369001735,0.54715712,1027.6,1026.0,1.30174951]
[1759369001936,0.54715712,1027.5,1026.0,1.30174951]
[1759369002138,0.54715712,1027.4,1026.0,1.30174951]
[1759369002333,0.54715712,1027.3,1026.0,1.30174951]
[1759369002539,0.87340148,1028.0,1026.0,1.30174951]
[1759369002738,0.54755514,1027.9,1026.0,1.30174951]
[1759369002936,0.54755514,1027.8,1026.0,1.30174951]
[1759369003136,0.54755514,1027.7,1026.3,0.16939871]
[1759369003337,0.54755514,1027.6,1026.3,0.16939871]
[1759369003535,0.54755514,1027.5,1026.3,0.16939871]
[1759369003745,0.54755514,1027.4,1026.3,0.16939871]
[1759369004037,0.54755514,1027.3,1026.3,0.16939871]
[1759369004236,0.54790874,1027.2,1026.3,0.16939871]
[1759369004436,0.16939871,1027.9,1026.3,0.16939871]
[1759369004635,0.54792378,1027.8,1026.3,0.16939871]
[1759369004839,0.54792378,1027.7,1026.3,0.16939871]
[1759369005038,0.54792378,1027.6,1026.3,0.16939871]
[1759369005340,0.54792378,1027.5,1026.3,0.16939871]
[1759369005538,0.54792378,1027.4,1026.3,0.16939871]
[1759369005739,0.54792378,1027.3,1026.3,0.16939871]
[1759369005938,0.54792378,1027.2,1026.3,0.16939871]
[1759369006138,1.04280019,1027.9,1026.3,0.16939871]
[1759369006338,0.54803003,1027.8,1026.3,0.16939871]
[1759369006537,0.54803003,1027.7,1026.3,0.16939871]
[1759369006737,0.54803003,1027.6,1026.3,0.16939871]
[1759369006936,0.54803003,1027.5,1026.3,0.16939871]
[1759369007141,0.54803003,1027.4,1026.3,0.16939871]
[1759369007338,0.54803003,1027.3,1026.3,0.16939871]
[1759369007542,1.04278617,1028.1,1026.3,0.16939871]
[1759369007739,0.54524846,1028.0,1026.3,0.16939871]
[1759369007959,0.54524846,1027.9,1026.3,0.16939871]
[1759369008244,0.54524846,1027.8,1026.3,0.16939871]
[1759369008439,0.54524846,1027.7,1026.3,0.16939871]
[1759369008741,0.54524846,1027.6,1026.3,1.47114822]
[1759369008939,0.54524846,1027.5,1026.3,1.47114822]
[1759369009143,0.54524846,1027.4,1026.4,1.30174951]
[1759369009339,0.54524846,1027.3,1026.4,1.30174951]
[1759369009540,0.87340148,1027.9,1026.5,1.30174951]
[1759369009842,0.54532925,1027.8,1026.5,1.30174951]
[1759369010063,0.54532925,1027.7,1026.5,1.30174951]
[1759369010343,0.54532925,1027.6,1026.5,1.30174951]
[1759369010543,0.54532925,1027.5,1026.5,1.30174951]
[1759369010743,0.54532925,1027.4,1026.4,1.30174951]
[1759369011039,0.87340148,1027.9,1026.4,1.30174951]
[1759369011243,0.5453367,1027.8,1026.4,1.30174951]
[1759369011543,0.5453367,1027.7,1026.4,1.30174951]
[1759369011740,0.5453367,1027.6,1026.4,1.30174951]
[1759369011944,0.5453367,1027.5,1026.4,1.30174951]
[1759369012242,0.5453367,1027.4,1026.4,1.30174951]
[1759369012538,0.87340148,1028.0,1026.4,1.30174951]
[1759369012741,0.54535202,1027.9,1026.4,1.30174951]
[1759369012944,0.54535202,1027.8,1026.4,1.30174951]
[1759369013143,0.54535202,1027.7,1026.4,1.30174951]
[1759369013338,0.54535202,1027.6,1026.4,1.30174951]
[1759369013543,0.54535202,1027.5,1026.4,1.30174951]
[1759369013740,0.54535202,1027.4,1026.4,1.30174951]
[1759369013940,0.87340148,1027.9,1026.4,1.30174951]
[1759369014239,0.54533883,1027.8,1026.4,1.30174951]
[1759369014445,0.54533883,1027.7,1026.4,1.30174951]
[1759369014644,0.54533883,1027.6,1026.4,1.30174951]
[1759369014844,0.87340148,1028.0,1026.4,1.30174951]
[1759369014845,0.54533883,1027.5,1026.4,1.30174951]
[1759369015043,0.54533883,1027.4,1026.4,1.30174951]
[1759369015245,0.87340148,1028.0,1026.4,1.30174951]
[1759369015544,0.54522193,1027.9,1026.3,1.47114822]
[1759369015842,0.54522193,1027.8,1026.3,1.47114822]
[1759369016146,0.54522193,1027.7,1026.3,1.47114822]
[1759369016346,0.87340148,1028.0,1026.3,1.47114822]
[1759369016347,0.54522193,1027.6,1026.3,1.47114822]
[1759369016546,0.54522193,1027.5,1026.3,1.47114822]
[1759369016845,0.87340148,1028.0,1026.3,1.47114822]
[1759369016846,0.54522193,1027.4,1026.3,1.47114822]
[1759369017043,1.04278617,1028.1,1026.3,1.47114822]
[1759369017245,0.54517334,1028.0,1026.3,1.47114822]
[1759369017448,0.54517334,1027.9,1026.3,1.47114822]
[1759369017642,0.54517334,1027.8,1026.3,1.47114822]
[1759369017947,0.54517334,1027.7,1026.3,1.47114822]
[1759369018148,0.54517334,1027.6,1026.3,1.47114822]
[1759369018345,0.54517334,1027.5,1026.3,1.47114822]
[1759369018549,0.54517334,1027.4,1026.3,1.47114822]
[1759369018749,1.04278617,1028.1,1026.3,1.47114822]
[1759369018950,0.54508904,1028.0,1026.3,1.47114822]
[1759369019146,0.54508904,1027.9,1026.3,1.47114822]
[1759369019347,0.54508904,1027.8,1026.3,1.47114822]
[1759369019550,0.54508904,1027.7,1026.3,1.47114822]
[1759369019850,0.54508904,1027.6,1026.3,1.47114822]
[1759369020047,0.54508904,1027.5,1026.3,1.47114822]
[1759369020250,0.54508904,1027.4,1026.3,1.47114822]
[1759369020450,1.04278617,1028.1,1026.3,0.16939871]
[1759369020750,0.5450503,1028.0,1026.3,0.16939871]
[1759369020950,0.5450503,1027.9,1026.3,0.16939871]
[1759369021148,0.5450503,1027.8,1026.3,0.16939871]
[1759369021346,0.5450503,1027.7,1026.3,0.16939871]
[1759369021550,0.5450503,1027.6,1026.3,0.16939871]
[1759369021747,0.5450503,1027.5,1026.3,0.16939871]
[1759369021953,0.5450503,1027.4,1026.3,0.16939871]
[1759369022253,1.04278617,1028.1,1026.3,0.16939871]
[1759369022452,0.54499373,1028.0,1026.3,0.16939871]
[1759369022648,0.54499373,1027.9,1026.3,0.16939871]
[1759369022848,0.54499373,1027.8,1026.3,0.16939871]
[1759369023048,0.54499373,1027.7,1026.3,0.16939871]
[1759369023351,0.54499373,1027.6,1026.3,0.16939871]
[1759369023648,0.54499373,1027.5,1026.3,0.16939871]
[1759369023848,0.54499373,1027.4,1026.3,0.16939871]
[1759369024153,1.04278617,1028.1,1026.3,0.16939871]
[1759369024353,0.54496412,1028.0,1026.3,0.16939871]
[1759369024552,0.54496412,1027.9,1026.3,0.16939871]
[1759369024749,0.54496412,1027.8,1026.3,0.16939871]
[1759369024952,0.54496412,1027.7,1026.3,0.16939871]
[1759369025150,0.54496412,1027.6,1026.3,0.16939871]
[1759369025450,0.54496412,1027.5,1026.3,0.16939871]
[1759369025655,0.54496412,1027.4,1026.3,0.16939871]
[1759369025852,1.04278617,1028.1,1026.3,0.16939871]
[1759369026054,0.54493659,1028.0,1026.3,0.16939871]
[1759369026254,0.54493659,1027.9,1026.3,0.16939871]
[1759369026454,0.54493659,1027.8,1026.3,0.16939871]
[1759369026651,0.54493659,1027.7,1026.3,0.16939871]
[1759369026850,0.54493659,1027.6,1026.3,0.16939871]
[1759369027054,0.54493659,1027.5,1026.3,1.47114822]
[1759369027255,0.54493659,1027.4,1026.3,0.16939871]
[1759369027452,1.04278617,1028.1,1026.3,1.47114822]
[1759369027656,0.5449238,1028.0,1026.3,1.47114822]
[1759369027853,1.04278617,1028.1,1026.3,1.47114822]
[1759369027854,0.5449238,1027.9,1026.3,1.47114822]
[1759369028056,1.04278617,1028.1,1026.3,1.47114822]
[1759369028057,0.5449238,1027.8,1026.3,1.47114822]
[1759369028254,0.5449238,1027.7,1026.3,1.47114822]
[1759369028456,0.5449238,1027.6,1026.3,1.47114822]
[1759369028659,0.5449238,1027.5,1026.3,1.47114822]
[1759369028856,1.04278617,1028.1,1026.3,1.47114822]
[1759369028857,0.5449238,1027.4,1026.3,1.47114822]
[1759369029061,1.04278617,1028.1,1026.3,1.47114822]
[1759369029260,0.54491992,1028.0,1026.3,1.47114822]
[1759369029461,0.54491992,1027.9,1026.3,1.47114822]
[1759369029659,0.54491992,1027.8,1026.3,1.47114822]
[1759369029859,0.54491992,1027.7,1026.3,1.47114822]
[1759369030058,0.54491992,1027.6,1026.3,1.47114822]
[1759369030360,0.54491992,1027.5,1026.3,1.47114822]
[1759369030661,1.04278617,1028.1,1026.3,1.47114822]
[1759369030958,0.54489305,1028.0,1026.3,1.47114822]
[1759369031159,0.54489305,1027.9,1026.3,1.47114822]
[1759369031357,0.54489305,1027.8,1026.3,1.47114822]
[1759369031657,0.54489305,1027.7,1026.3,1.47114822]
[1759369031957,0.54489305,1027.6,1026.3,1.47114822]
[1759369032158,0.54489305,1027.5,1026.3,1.47114822]
[1759369032358,1.04278617,1028.1,1026.3,1.47114822]
[1759369032557,0.54486378,1028.0,1026.3,1.47114822]
[1759369032861,0.54486378,1027.9,1026.3,1.47114822]
[1759369033160,0.54486378,1027.8,1026.3,1.47114822]
[1759369033356,0.54486378,1027.7,1026.3,1.47114822]
[1759369033565,0.54486378,1027.6,1026.3,1.47114822]
[1759369033855,0.54486378,1027.5,1026.3,1.47114822]
[1759369034059,1.04278617,1028.1,1026.3,1.47114822]
[1759369034261,0.54485391,1028.0,1026.3,1.47114822]
[1759369034558,0.54485391,1027.9,1026.3,1.47114822]
[1759369034762,0.54485391,1027.8,1026.3,1.47114822]
[1759369034960,0.54485391,1027.7,1026.3,1.47114822]
[1759369035158,0.54485391,1027.6,1026.3,1.47114822]
[1759369035361,0.54485391,1027.5,1026.3,1.47114822]
[1759369035559,0.87340148,1028.2,1026.3,1.47114822]
[1759369035765,1.41825502,1028.1,1026.3,1.47114822]
[1759369035958,0.54485354,1028.0,1026.3,1.47114822]
[1759369036163,0.54485354,1027.9,1026.5,1.30174951]
[1759369036365,0.54485354,1027.8,1026.3,0.16939871]
[1759369036663,0.16936655,1028.3,1026.3,0.16939871]
[1759369036664,0.54485354,1027.7,1026.3,0.16939871]
[1759369036863,0.16936655,1028.3,1026.3,0.16939871]
[1759369036864,0.54485354,1027.6,1026.3,0.16939871]
[1759369037164,0.16936655,1028.3,1026.3,0.16939871]
[1759369037364,0.54470178,1028.2,1026.3,0.16939871]
[1759369037663,0.54470178,1028.1,1026.3,0.16939871]
[1759369037858,0.54470178,1028.0,1026.3,0.16939871]
[1759369038061,0.54470178,1027.9,1026.3,0.16939871]
[1759369038259,0.54470178,1027.8,1026.3,0.16939871]
[1759369038460,0.54470178,1027.7,1026.3,0.16939871]
[1759369038663,0.54470178,1027.6,1026.3,0.16939871]
[1759369038861,0.16936655,1028.3,1026.3,0.16939871]
[1759369039162,0.54434889,1028.2,1026.3,0.16939871]
[1759369039360,0.54434889,1028.1,1026.3,0.16939871]
[1759369039562,0.54434889,1028.0,1026.3,0.16939871]
[1759369039862,0.54434889,1027.9,1026.3,0.16939871]
[1759369040063,0.54434889,1027.8,1026.3,0.16939871]
[1759369040261,0.54434889,1027.7,1026.3,0.16939871]
[1759369040566,0.16936655,1028.3,1026.3,0.16939871]
[1759369040865,0.54425439,1028.2,1026.3,0.16939871]
[1759369041161,0.54425439,1028.1,1026.3,0.16939871]
[1759369041366,0.54425439,1028.0,1026.3,0.16939871]
[1759369041567,0.54425439,1027.9,1026.3,0.16939871]
[1759369041867,0.54425439,1027.8,1026.3,0.16939871]
[1759369042072,0.54425439,1027.7,1026.3,0.16939871]
[1759369042267,0.16936655,1028.3,1026.3,0.16939871]
[1759369042468,0.54419753,1028.2,1026.3,0.16939871]
[1759369042668,0.54419753,1028.1,1026.3,0.16939871]
[1759369042868,0.54419753,1028.0,1026.3,0.16939871]
[1759369043064,0.54419753,1027.9,1026.3,0.16939871]
[1759369043268,0.54419753,1027.8,1026.3,0.16939871]
[1759369043468,0.54419753,1027.7,1026.3,0.16939871]
[1759369043764,0.16936655,1028.3,1026.3,0.16939871]
[1759369043965,0.54418184,1028.2,1026.3,0.16939871]
[1759369044169,0.54418184,1028.1,1026.3,0.16939871]
[1759369044469,0.54418184,1028.0,1026.3,0.16939871]
[1759369044665,0.54418184,1027.9,1026.3,0.16939871]
[1759369044866,0.54418184,1027.8,1026.3,0.16939871]
[1759369045169,0.54418184,1027.7,1026.3,0.16939871]
[1759369045468,0.16936655,1028.3,1026.3,0.16939871]
[1759369045668,0.54408038,1028.2,1026.3,0.16939871]
[1759369045868,0.54408038,1028.1,1026.3,0.16939871]
[1759369046166,0.54408038,1028.0,1026.3,0.16939871]
[1759369046368,0.16936655,1028.3,1026.3,0.16939871]
[1759369046369,0.54408038,1027.9,1026.3,1.47114822]
[1759369046567,0.16936655,1028.3,1026.3,1.47114822]
[1759369046568,0.54408038,1027.8,1026.3,1.47114822]
[1759369046867,0.16936655,1028.3,1026.3,1.47114822]
[1759369046868,0.54408038,1027.7,1026.3,1.47114822]
[1759369047067,0.16936655,1028.3,1026.3,1.47114822]
[1759369047267,0.54402802,1028.2,1026.3,1.47114822]
[1759369047565,0.54402802,1028.1,1026.3,1.47114822]
[1759369047769,0.54402802,1028.0,1026.3,0.16939871]
[1759369047969,0.54402802,1027.9,1026.3,0.16939871]
[1759369048169,0.54402802,1027.8,1026.3,0.16939871]
[1759369048366,0.54402802,1027.7,1026.3,0.16939871]
[1759369048668,0.16936655,1028.3,1026.3,0.16939871]
[1759369048869,0.54395577,1028.2,1026.3,0.16939871]
[1759369049069,0.54395577,1028.1,1026.3,0.16939871]
[1759369049268,0.54395577,1028.0,1026.3,0.16939871]
[1759369049571,0.54395577,1027.9,1026.3,0.16939871]
[1759369049770,0.54395577,1027.8,1026.3,0.16939871]
[1759369049966,0.54395577,1027.7,1026.3,0.16939871]
[1759369050270,0.16936655,1028.3,1026.3,0.16939871]
[1759369050468,0.54391639,1028.2,1026.3,0.16939871]
[1759369050667,0.54391639,1028.1,1026.4,1.30174951]
[1759369050867,0.54391639,1028.0,1026.4,1.30174951]
[1759369051066,0.54391639,1027.9,1026.4,1.30174951]
[1759369051372,0.54391639,1027.8,1026.4,1.30174951]
[1759369051670,0.16936655,1028.3,1026.4,1.30174951]
[1759369051671,0.54391639,1027.7,1026.4,1.30174951]
[1759369051871,0.16936655,1028.3,1026.4,1.30174951]
[1759369052068,0.54393534,1028.2,1026.4,1.30174951]
[1759369052267,0.54393534,1028.1,1026.4,1.30174951]
[1759369052488,0.54393534,1028.0,1026.4,1.30174951]
[1759369052671,0.54393534,1027.9,1026.3,1.47114822]
[1759369052872,0.54393534,1027.8,1026.3,1.47114822]
[1759369053167,0.54393534,1027.7,1026.4,1.30174951]
[1759369053468,0.54393534,1027.6,1026.4,1.30174951]
[1759369053780,0.87340148,1028.2,1026.4,1.30174951]
[1759369053971,0.54404374,1028.1,1026.4,1.30174951]
[1759369054168,0.54404374,1028.0,1026.4,1.30174951]
[1759369054368,0.54404374,1027.9,1026.4,1.30174951]
[1759369054673,0.54404374,1027.8,1026.4,1.30174951]
[1759369054873,0.54404374,1027.7,1026.4,1.30174951]
[1759369055173,0.54404374,1027.6,1026.4,1.30174951]
[1759369055369,0.87340148,1028.2,1026.4,1.30174951]
[1759369055573,0.54416788,1028.1,1026.3,1.47114822]
[1759369055884,0.54416788,1028.0,1026.3,1.47114822]
[1759369056073,0.54416788,1027.9,1026.3,1.47114822]
[1759369056269,0.54416788,1027.8,1026.3,1.47114822]
[1759369056473,0.54416788,1027.7,1026.3,1.47114822]
[1759369056773,0.54416788,1027.6,1026.3,1.47114822]
[1759369056975,0.54416788,1027.5,1026.3,1.47114822]
[1759369057183,0.87340148,1028.2,1026.3,1.47114822]
[1759369057384,1.41762788,1028.1,1026.3,0.16939871]
[1759369057584,0.5442264,1028.0,1026.3,0.16939871]
[1759369057781,0.5442264,1027.9,1026.3,0.16939871]
[1759369057982,0.5442264,1027.8,1026.3,0.16939871]
[1759369058181,0.5442264,1027.7,1026.3,0.16939871]
[1759369058480,0.5442264,1027.6,1026.3,0.16939871]
[1759369058683,0.16936655,1028.3,1026.3,0.16939871]
[1759369058684,0.5442264,1027.5,1026.3,0.16939871]
[1759369058882,0.16936655,1028.3,1026.3,0.16939871]
[1759369059082,0.5442875,1028.2,1026.3,0.16939871]
[1759369059282,0.5442875,1028.1,1026.3,0.16939871]
[1759369059482,0.5442875,1028.0,1026.3,0.16939871]
[1759369059683,0.5442875,1027.9,1026.3,0.16939871]
[1759369059883,0.5442875,1027.8,1026.3,0.16939871]
[1759369060185,0.5442875,1027.7,1026.3,0.16939871]
[1759369060382,0.5442875,1027.6,1026.3,0.16939871]
[1759369060586,0.5442875,1027.5,1026.3,0.16939871]
[1759369060787,0.16936655,1028.3,1026.3,0.16939871]
[1759369060988,0.54439134,1028.2,1026.3,0.16939871]
[1759369061188,0.54439134,1028.1,1026.3,0.16939871]
[1759369061390,0.54439134,1028.0,1026.3,0.16939871]
[1759369061590,0.54439134,1027.9,1026.3,0.16939871]
[1759369061789,0.16936655,1028.3,1026.3,0.16939871]
[1759369061790,0.54439134,1027.8,1026.3,0.16939871]
[1759369061986,0.54439134,1027.7,1026.3,0.16939871]
[1759369062190,0.16936655,1028.3,1026.3,0.16939871]
[1759369062191,0.54439134,1027.6,1026.3,0.16939871]
[1759369062392,0.16936655,1028.3,1026.3,0.16939871]
[1759369062393,0.54439134,1027.5,1026.3,0.16939871]
[1759369062593,0.87340148,1028.0,1026.6,1.30174951]
[1759369062793,0.54449986,1027.9,1026.6,1.30174951]
[1759369062992,0.54449986,1027.8,1026.6,1.30174951]
[1759369063189,0.54449986,1027.7,1026.6,1.30174951]
[1759369063393,0.54449986,1027.6,1026.6,1.30174951]
[1759369063593,0.54449986,1027.5,1026.6,1.30174951]
[1759369063793,0.87340148,1028.0,1026.6,1.30174951]
[1759369063994,0.54457681,1027.9,1026.6,1.30174951]
[1759369064195,0.54457681,1027.8,1026.6,1.30174951]
[1759369064493,0.54457681,1027.7,1026.6,1.30174951]
[1759369064694,0.54457681,1027.6,1026.6,1.30174951]
[1759369064895,0.54457681,1027.5,1026.6,1.30174951]
[1759369065096,0.87340148,1028.0,1026.6,1.30174951]
[1759369065396,0.16936655,1028.3,1026.3,1.47114822]
[1759369065397,0.54463387,1027.9,1026.3,1.47114822]
[1759369065591,0.54463387,1027.8,1026.3,1.47114822]
[1759369065796,0.54463387,1027.7,1026.3,1.47114822]
[1759369066091,1.04276803,1028.3,1026.3,1.47114822]
[1759369066092,0.54463387,1027.6,1026.3,1.47114822]
[1759369066298,1.04276803,1028.3,1026.3,1.47114822]
[1759369066496,0.54474795,1028.2,1026.3,1.47114822]
[1759369066697,0.54474795,1028.1,1026.3,1.47114822]
[1759369066893,0.54474795,1028.0,1026.3,1.47114822]
[1759369067092,0.54474795,1027.9,1026.3,1.47114822]
[1759369067293,0.54474795,1027.8,1026.3,1.47114822]
[1759369067497,0.54474795,1027.7,1026.3,1.47114822]
[1759369067697,0.54474795,1027.6,1026.3,1.47114822]
[1759369067895,1.04276803,1028.3,1026.3,1.47114822]
[1759369068096,0.54633604,1028.2,1026.3,1.47114822]
[1759369068410,0.54633604,1028.1,1026.3,1.47114822]
[1759369068593,0.54633604,1028.0,1026.3,1.47114822]
[1759369068796,0.54633604,1027.9,1026.3,1.47114822]
[1759369069096,0.54633604,1027.8,1026.3,1.47114822]
[1759369069297,0.54633604,1027.7,1026.3,1.47114822]
[1759369069494,0.54633604,1027.6,1026.3,1.47114822]
[1759369069697,0.54633604,1027.5,1026.3,1.47114822]
[1759369069894,1.04276803,1028.3,1026.3,1.47114822]
[1759369070099,0.54641343,1028.2,1026.3,1.47114822]
[1759369070293,0.54641343,1028.1,1026.3,1.47114822]
[1759369070498,0.54641343,1028.0,1026.3,1.47114822]
[1759369070793,0.54641343,1027.9,1026.3,1.47114822]
[1759369070994,0.54641343,1027.8,1026.3,1.47114822]
[1759369071194,0.54641343,1027.7,1026.3,1.47114822]
[1759369071393,0.54641343,1027.6,1026.3,1.47114822]
[1759369071693,0.54641343,1027.5,1026.3,1.47114822]
[1759369071994,1.04276803,1028.3,1026.3,1.47114822]
[1759369072194,0.54645193,1028.2,1026.3,1.47114822]
[1759369072397,0.54645193,1028.1,1026.3,1.47114822]
[1759369072627,0.54645193,1028.0,1026.3,1.47114822]
[1759369072799,0.54645193,1027.9,1026.3,1.47114822]